bitfinex/quotes_ETHUSD_20250725
["timestamp","ask_amount","ask_price","bid_price","bid_amount"]
[1753478779570,2.68655894,3722.3,3721.7,0.9185]
[1753478779769,0.54065043,3722.3,3721.4,0.4443]
[1753478779929,0.03358229,3722.2,3721.3,0.8249]
[1753478780279,0.03358229,3722.2,3721.5,0.4988]
[1753478780436,0.03358048,3722.4,3721.6,2.6870072]
[1753478780636,2.68653295,3722.3,3721.7,0.4988]
[1753478780844,0.39341869,3722.3,3721.7,3.18573598]
[1753478781139,0.39341869,3722.3,3721.7,0.4988]
[1753478781669,2.68651468,3722.3,3721.8,0.4405]
[1753478781969,2.68651468,3722.3,3721.9,0.9393]
[1753478782170,2.68643885,3722.4,3721.9,0.9393]
[1753478782368,3.48791983,3722.4,3722.0,0.9393]
[1753478782686,1.2764,3723.2,3721.3,0.8249]
[1753478782687,0.7602,3723.7,3722.2,0.7723]
[1753478782848,2.68569727,3723.5,3722.8,2.68611399]
[1753478783051,0.1344,3723.2,3722.9,0.9393]
[1753478783249,2.68599699,3723.1,3722.9,0.4988]
[1753478783456,0.1344,3723.2,3722.9,0.4988]
[1753478783655,0.1344,3723.2,3722.6,0.5749]
[1753478783656,0.16797327,3723.2,3722.6,0.5749]
[1753478783852,0.1344,3723.0,3722.6,0.9393]
[1753478784087,0.1344,3723.0,3722.7,0.9393]
[1753478784479,0.1344,3723.0,3722.8,0.9393]
[1753478784983,0.1344,3723.0,3722.8,0.4405]
[1753478785184,0.1344,3723.0,3722.9,0.4988]
[1753478785486,0.1344,3723.0,3722.9,0.9393]
[1753478785785,2.8204059,3723.0,3722.9,0.9393]
[1753478786189,0.1344,3723.0,3722.9,0.9393]
[1753478786483,2.8204059,3723.0,3722.9,0.9393]
[1753478786686,2.8204059,3723.0,3722.9,0.4988]
[1753478786991,2.68616662,3722.8,3722.6,0.9393]
[1753478787188,2.68616662,3722.8,3722.4,0.1344]
[1753478787393,2.68610097,3722.9,3722.7,0.9393]
[1753478787566,2.71967694,3722.9,3722.8,0.4988]
[1753478788169,2.68610097,3722.9,3722.8,0.4988]
[1753478788675,3.40462594,3723.0,3722.8,0.4988]
[1753478788880,0.1344,3723.0,3722.9,0.4988]
[1753478789085,2.8204059,3723.0,3722.9,0.4988]
[1753478789781,0.1344,3723.0,3722.9,0.4988]
[1753478790156,2.8204059,3723.0,3722.9,0.4988]
[1753478791679,0.1344,3723.0,3722.9,0.4988]
[1753478791915,2.8204059,3723.0,3722.9,0.4988]
[1753478792077,0.1344,3723.0,3722.9,0.4988]
[1753478792478,0.1344,3723.0,3722.9,0.9393]
[1753478793178,2.64,3723.6,3722.9,0.9393]
[1753478793374,2.82027604,3723.2,3722.9,0.9393]
[1753478793692,2.82027604,3723.2,3723.0,0.4988]
[1753478793887,0.1344,3723.2,3723.0,0.4988]
[1753478794216,0.1344,3723.2,3723.1,0.4988]
[1753478794986,2.68555731,3723.7,3723.1,0.9393]
[1753478795191,1.2602,3724.2,3723.0,3.44399715]
[1753478795192,0.1344,3723.4,3723.2,0.9393]
[1753478795391,0.1344,3723.4,3723.1,2.68587865]
[1753478795593,0.1344,3723.4,3723.3,0.9393]
[1753478795814,0.24871356,3724.1,3723.3,0.9393]
[1753478796021,0.1344,3723.7,3723.3,0.4405]
[1753478796180,0.1344,3723.7,3723.4,0.9393]
[1753478796694,0.1344,3723.7,3723.5,0.9393]
[1753478796892,0.1344,3723.7,3723.5,0.4405]
[1753478797092,0.1344,3723.7,3723.6,0.4988]
[1753478797719,0.37232183,3724.0,3723.6,0.9393]
[1753478798026,2.81984134,3723.8,3723.7,0.4988]
[1753478798412,0.1344,3723.8,3723.7,0.4988]
[1753478798814,2.81982886,3723.8,3723.7,0.4988]
[1753478799190,0.38372189,3723.8,3723.7,0.4988]
[1753478799390,0.1344,3723.8,3723.7,0.4988]
[1753478799908,2.81982886,3723.8,3723.7,0.4988]
[1753478800103,2.81982886,3723.8,3723.6,0.4405]
[1753478800309,0.24932189,3723.7,3723.6,0.4405]
[1753478800506,0.24932189,3723.7,3723.6,0.9393]
[1753478801925,0.25068986,3723.7,3723.6,0.4988]
[1753478802111,2.93619084,3723.7,3723.6,0.4988]
[1753478802308,2.93619084,3723.7,3723.3,0.4405]
[1753478802508,0.75515952,3723.6,3722.6,5.0026]
[1753478802831,2.68605477,3723.0,3722.7,0.1344]
[1753478803218,2.6861502,3722.8,3722.7,0.1344]
[1753478803422,2.8205502,3722.8,3722.4,2.638]
[1753478803723,2.68679975,3721.9,3721.7,0.8026]
[1753478803925,0.1344,3722.1,3721.7,0.4988]
[1753478804130,2.686854,3721.9,3721.7,0.4988]
[1753478804440,2.82105802,3722.1,3721.7,0.4988]
[1753478804441,2.82106317,3722.1,3721.8,0.4988]
[1753478805329,2.82106317,3722.1,3721.5,0.5749]
[1753478805330,2.68672756,3722.0,3721.5,0.5749]
[1753478805537,2.72040162,3721.9,3721.5,1.0737]
[1753478805858,0.1344,3722.1,3721.6,0.9393]
[1753478805999,0.8006,3722.0,3720.7,3.3934]
[1753478806198,0.8006,3722.0,3721.4,0.4988]
[1753478806199,0.1344,3721.6,3721.4,0.4988]
[1753478806398,0.1344,3721.6,3721.5,0.4988]
[1753478806617,0.1344,3721.6,3721.1,0.4988]
[1753478806942,0.1344,3721.6,3721.0,0.1344]
[1753478807117,2.8214197,3721.6,3720.7,0.7564]
[1753478807321,2.96914787,3721.6,3721.0,0.4988]
[1753478807518,0.1344,3721.2,3721.0,0.4988]
[1753478807707,0.1344,3721.2,3720.8,2.637]
[1753478807907,0.1344,3721.2,3720.9,0.9393]
[1753478808109,2.72096959,3721.1,3720.1,1.2552]
[1753478808341,2.68781503,3720.5,3720.1,1.2552]
[1753478808539,2.72141266,3720.5,3720.2,0.9393]
[1753478808848,2.68789247,3720.4,3720.2,0.9393]
[1753478809010,2.68799287,3720.3,3720.0,0.4988]
[1753478809219,0.03359492,3720.8,3720.1,0.4988]
[1753478809464,0.31920619,3720.7,3720.1,0.4988]
[1753478809754,0.03359673,3720.6,3720.1,0.4988]
[1753478809951,0.8006,3721.1,3720.2,2.637]
[1753478809952,2.68748605,3721.0,3720.2,2.637]
[1753478810155,0.25093003,3721.1,3719.7,3.7564]
[1753478810156,0.03359402,3720.9,3719.7,3.7564]
[1753478810323,0.03359312,3721.0,3720.3,0.455]
[1753478810657,2.68753987,3720.9,3720.3,0.455]
[1753478810856,2.68741969,3721.1,3720.3,0.455]
[1753478810857,2.68738168,3721.1,3720.5,0.7564]
[1753478811056,2.92136552,3721.4,3720.3,0.455]
[1753478811228,3.33107602,3721.4,3720.4,0.9259]
[1753478811551,3.33107602,3721.4,3720.1,0.7564]
[1753478811552,2.68737738,3721.1,3720.1,0.7564]
[1753478811754,0.94821592,3721.0,3720.2,0.455]
[1753478811927,2.68788131,3720.5,3720.2,0.455]
[1753478812130,0.03359853,3720.4,3719.9,0.455]
[1753478812328,2.68823121,3720.0,3719.7,3.4067]
[1753478812529,0.7606,3720.6,3719.8,0.455]
[1753478812753,2.68819205,3720.0,3719.8,0.455]
[1753478812919,2.6882443,3719.9,3719.7,0.7697]
[1753478813125,0.43658135,3720.5,3719.1,0.9259]
[1753478813319,0.43658135,3720.5,3719.6,2.68845558]
[1753478813537,2.68831657,3719.8,3719.7,0.455]
[1753478813756,0.7606,3721.6,3719.8,0.7697]
[1753478813956,0.25027516,3721.5,3720.2,0.55]
[1753478814171,0.25027516,3721.4,3720.3,1.72247955]
[1753478814456,0.0335895,3721.4,3720.4,3.092]
[1753478814643,2.6877155,3720.7,3720.4,3.092]
[1753478815035,0.03359492,3720.8,3720.4,3.092]
[1753478815231,2.68781077,3720.5,3720.4,0.455]
[1753478815422,2.68781077,3720.5,3720.3,1.2406]
[1753478815423,2.68788302,3720.4,3720.3,0.7697]
[1753478815755,2.68797496,3720.3,3719.8,0.455]
[1753478815953,2.68816899,3720.1,3719.9,0.455]
[1753478816258,2.68817204,3720.0,3719.9,0.455]
[1753478816557,2.6885334,3719.5,3719.4,0.455]
[1753478817440,2.6885334,3719.5,3719.4,0.9259]
[1753478818142,2.6885334,3719.5,3719.4,0.1344]
[1753478818346,2.6885334,3719.5,3719.4,0.9259]
[1753478819557,2.68867797,3719.3,3719.2,0.1344]
[1753478819745,2.68867797,3719.3,3719.2,0.5894]
[1753478820133,2.68867797,3719.3,3719.2,0.9259]
[1753478820526,0.1344,3719.5,3719.2,0.9259]
[1753478820727,2.82261517,3720.0,3719.3,0.9259]
[1753478820931,0.1344,3720.0,3719.4,1.0103]
[1753478821127,0.4742,3720.8,3719.9,0.1344]
[1753478821128,2.68810068,3720.1,3719.9,0.1344]
[1753478821467,2.68810068,3720.1,3720.0,0.9259]
[1753478822226,0.1344,3720.5,3720.0,0.9259]
[1753478822459,0.776,3721.3,3720.2,0.55]
[1753478822651,3.00665882,3721.4,3720.5,2.68779514]
[1753478822860,2.68752183,3720.9,3720.8,0.1344]
[1753478823229,2.68747058,3721.0,3720.8,0.1344]
[1753478823458,2.68752183,3720.9,3720.8,0.1344]
[1753478823766,2.68752183,3720.9,3720.8,0.5894]
[1753478823960,0.43506588,3721.3,3720.9,0.8309]
[1753478824188,2.68744961,3721.0,3720.9,0.8309]
[1753478824671,2.68744961,3721.0,3720.9,1.2859]
[1753478825648,2.68744961,3721.0,3720.9,0.455]
[1753478826757,2.68752183,3720.9,3720.8,0.1344]
[1753478827573,2.68795527,3720.3,3720.2,0.7665]
[1753478827886,2.68795527,3720.3,3720.2,1.6924]
[1753478828071,2.68817204,3720.0,3719.9,5.636]
[1753478828238,2.68817204,3720.0,3719.8,0.7665]
[1753478828441,2.72153704,3720.4,3719.4,0.7665]
[1753478828643,2.6885334,3719.5,3719.4,0.7665]
[1753478828871,2.6885334,3719.5,3719.4,0.9009]
[1753478829288,2.6885334,3719.5,3719.4,1e-08]
[1753478829289,3.9224334,3719.5,3719.4,1e-08]
[1753478829434,7.0007334,3719.5,3719.4,1e-08]
[1753478830405,3.4482334,3719.5,3719.4,1e-08]
[1753478830539,2.6885334,3719.5,3719.4,1e-08]
[1753478830740,0.7597,3720.0,3719.4,1e-08]
[1753478831074,2.68847569,3719.6,3719.4,0.92590001]
[1753478831275,2.6882365,3720.0,3719.4,0.92590001]
[1753478831581,0.29738302,3720.0,3719.4,0.92590001]
[1753478831782,2.68810898,3720.1,3719.5,0.9259]
[1753478831982,2.68810898,3720.1,3719.4,1e-08]
[1753478832172,2.635,3720.7,3719.7,2.68832936]
[1753478832369,0.8206,3720.8,3719.6,0.9259]
[1753478832370,0.8206,3720.8,3719.8,0.9259]
[1753478832567,2.6880404,3720.2,3719.5,2.68851848]
[1753478832771,0.03359673,3720.6,3719.5,0.455]
[1753478832973,2.68802564,3720.3,3719.5,3.61437897]
[1753478833148,0.03359853,3720.4,3719.5,0.9259]
[1753478833347,0.03359944,3720.3,3719.4,1e-08]
[1753478833559,2.68802752,3720.2,3719.4,0.45500001]
[1753478833759,0.7329301,3720.7,3719.5,0.49778533]
[1753478833962,2.68735955,3721.2,3720.3,2.68793238]
[1753478834168,2.68735955,3721.2,3720.4,0.02687883]
[1753478834359,2.68725594,3721.3,3720.4,3.64064315]
[1753478834684,2.6871665,3721.4,3720.6,0.8056]
[1753478834980,2.6871665,3721.4,3720.7,0.455]
[1753478834981,3.0884281,3721.4,3720.7,0.455]
[1753478835346,2.6872474,3721.3,3720.7,0.455]
[1753478835580,3.08848477,3721.4,3720.6,0.8056]
[1753478835782,2.68731257,3721.2,3720.6,1.2606]
[1753478835981,2.68739028,3721.1,3720.6,0.8056]
[1753478836190,2.68750601,3721.0,3720.6,0.8056]
[1753478836545,2.68740108,3721.1,3720.6,0.8056]
[1753478836745,2.68724751,3721.3,3720.7,0.9259]
[1753478837097,2.68724751,3721.3,3720.2,0.9259]
[1753478837098,2.68754938,3720.9,3720.2,0.9259]
[1753478837268,2.68760723,3720.8,3720.2,0.9259]
[1753478837746,2.68769109,3720.7,3720.2,0.9259]
[1753478838069,2.68752183,3720.9,3720.3,0.455]
[1753478838269,0.66297859,3721.3,3720.3,0.9259]
[1753478838475,2.68735714,3721.2,3720.5,2.68775444]
[1753478838686,1.2948,3721.6,3720.6,0.9259]
[1753478838902,2.68708853,3721.5,3720.6,0.9259]
[1753478839054,2.68751863,3721.0,3720.6,0.9259]
[1753478839255,2.68753492,3720.9,3720.7,0.1344]
[1753478839586,2.68745554,3721.0,3720.7,0.1344]
[1753478839784,0.1344,3721.3,3720.7,0.1344]
[1753478839950,2.68731887,3721.2,3720.8,0.455]
[1753478840149,2.68731277,3721.2,3720.7,0.1344]
[1753478840350,2.82165355,3721.3,3720.9,0.4729]
[1753478840552,3.98188166,3721.6,3721.0,0.9185]
[1753478840553,2.634,3721.6,3721.0,0.9185]
[1753478840757,2.68615059,3722.8,3721.0,0.9185]
[1753478840758,0.7738,3722.4,3721.0,1.0529]
[1753478840957,0.7738,3722.4,3721.3,2.68717069]
[1753478841158,2.68655781,3722.3,3721.4,1.6919]
[1753478841359,2.68645144,3722.4,3721.5,0.9185]
[1753478841572,0.7738,3722.8,3721.6,0.9185]
[1753478841573,2.634,3722.6,3721.6,0.9185]
[1753478841767,0.34078,3722.5,3721.6,0.9185]
[1753478841968,2.68656479,3722.3,3721.6,3.60550858]
[1753478842368,3.02720775,3722.5,3721.6,3.60550858]
[1753478842369,2.68644685,3722.4,3721.6,0.9185]
[1753478842568,2.68651102,3722.3,3721.6,0.9185]
[1753478842798,2.68651102,3722.3,3721.6,3.60548973]
[1753478842995,2.68656266,3722.3,3721.6,0.9185]
[1753478843296,3.5213348,3722.3,3721.6,3.60549501]
[1753478843500,2.6865962,3722.2,3721.6,3.60549501]
[1753478843701,0.83477214,3722.3,3721.8,2.68685311]
[1753478843901,0.34078,3722.5,3721.6,0.4456]
[1753478844239,2.68645222,3722.4,3721.7,0.4729]
[1753478844562,5.31938832,3722.5,3721.7,3.15983393]
[1753478844963,5.31938832,3722.5,3721.7,0.4729]
[1753478844964,5.3194181,3722.5,3721.7,0.4729]
[1753478845170,2.633,3722.5,3721.7,0.4729]
[1753478845491,5.31937517,3722.5,3721.7,3.15984029]
[1753478845795,2.633,3722.5,3721.8,2.68682481]
[1753478845998,2.68646144,3722.4,3721.7,0.4729]
[1753478846196,3.34283199,3722.5,3721.7,3.15983069]
[1753478846398,2.633,3722.4,3721.8,2.68684186]
[1753478846562,1.2451,3722.8,3721.8,0.9185]
[1753478846563,0.7738,3722.8,3721.8,0.9185]
[1753478846764,0.4713,3723.2,3721.4,0.8196]
[1753478846765,1.2949,3723.2,3721.9,0.9185]
[1753478846966,1.2949,3723.2,3721.6,2.68697627]
[1753478846967,2.80592,3723.1,3722.0,1.7363]
[1753478847287,2.68612188,3722.9,3722.1,3.15954517]
[1753478847492,2.632,3723.0,3722.1,0.4729]
[1753478847799,2.68612985,3722.9,3722.2,2.68657719]
[1753478848164,2.68612985,3722.9,3722.1,0.4729]
[1753478848165,0.17392,3723.1,3722.1,0.4729]
[1753478848364,2.632,3723.8,3722.5,2.68630974]
[1753478848365,0.4713,3723.5,3722.5,2.68630974]
[1753478848593,3.15699255,3723.5,3722.5,2.68630974]
[1753478848774,0.4713,3723.5,3722.6,2.6862836]
[1753478849163,3.15695326,3723.5,3722.5,3.15924398]
[1753478849363,0.71439307,3723.4,3722.5,3.15924398]
[1753478849564,3.40011215,3723.4,3722.5,3.15924398]
[1753478849760,0.71439307,3723.4,3722.5,3.159265]
[1753478850012,3.15696349,3723.5,3722.5,3.159265]
[1753478850166,3.15696349,3723.5,3722.6,2.68628033]
[1753478851008,0.1344,3723.0,3722.5,3.29364172]
[1753478851216,0.1344,3723.0,3722.6,2.68628508]
[1753478851415,0.1344,3723.0,3722.6,0.9185]
[1753478851581,0.46710939,3724.5,3722.6,0.9185]
[1753478851582,0.1344,3723.4,3723.2,2.68579586]
[1753478851790,2.7654,3723.7,3723.3,3.60424678]
[1753478851995,6.503,3723.9,3723.5,3.58239605]
[1753478852393,3.872,3723.9,3723.6,3.15847152]
[1753478852715,3.872,3723.9,3723.6,0.4729]
[1753478853717,2.7654,3724.0,3723.6,0.4729]
[1753478858533,0.1344,3724.0,3723.6,0.4729]
[1753478862250,2.6855731,3723.6,3723.0,0.7563]
[1753478862448,0.03357056,3723.5,3723.1,3.0]
[1753478862647,2.68550604,3723.7,3723.1,3.0]
[1753478862847,2.628,3723.8,3723.1,3.0]
[1753478862848,2.685585,3723.6,3723.1,0.4729]
[1753478863064,0.94917056,3723.5,3722.4,0.7563]
[1753478863359,2.68577645,3723.4,3722.5,0.9185]
[1753478863530,2.627,3723.4,3722.8,2.68610655]
[1753478863851,2.627,3723.4,3722.6,2.68629452]
[1753478863852,5.31272088,3723.4,3722.9,0.9185]
[1753478864051,2.68585839,3723.3,3722.9,0.9185]
[1753478864222,2.68587185,3723.2,3722.9,0.9185]
[1753478864617,5.31272088,3723.4,3722.9,0.4729]
[1753478864618,2.68593411,3723.1,3722.9,0.4729]
[1753478864848,0.26859341,3723.0,3722.4,0.7563]
[1753478865048,2.66057597,3722.9,3722.2,0.4729]
[1753478865249,3.0983,3722.9,3722.1,1.2019]
[1753478865434,2.68644293,3722.4,3722.1,1.2019]
[1753478865748,0.4713,3722.6,3721.7,1.2292]
[1753478865949,2.68664564,3722.2,3721.7,1.2292]
[1753478866153,2.68664564,3722.2,3721.8,0.4729]
[1753478866948,5.3134479,3722.4,3721.8,3.0]
[1753478867138,5.3134479,3722.4,3721.8,3.4729]
[1753478867664,2.68653568,3722.3,3721.8,0.4729]
[1753478868060,2.68653568,3722.3,3721.7,3.7563]
[1753478868365,5.31346211,3722.4,3721.8,0.4729]
[1753478868754,2.627,3722.4,3721.8,0.4729]
[1753478869472,0.7692,3723.0,3722.0,3.0]
[1753478869674,4.438,3724.4,3721.8,0.4729]
[1753478869675,2.626,3723.4,3722.2,3.0]
[1753478869861,2.626,3723.4,3722.7,2.68617715]
[1753478870038,0.7813,3723.5,3722.7,0.4583]
[1753478870244,2.626,3723.4,3722.9,2.68602586]
[1753478870439,3.23528029,3723.4,3722.9,3.14435598]
[1753478870673,0.4742,3724.1,3723.0,0.9077]
[1753478870889,2.626,3724.0,3723.4,2.68565292]
[1753478871038,5.31128677,3724.0,3723.3,2.68577088]
[1753478871376,5.3113435,3724.0,3723.3,3.14404138]
[1753478871560,2.68536427,3723.9,3723.3,0.4583]
[1753478871740,3.61057279,3723.9,3723.3,0.4583]
[1753478871938,3.61057279,3723.9,3723.2,2.6858454]
[1753478872373,3.74497279,3723.9,3723.4,0.1344]
[1753478873179,2.626,3723.8,3723.4,0.5927]
[1753478874150,0.50776876,3723.7,3722.8,0.7584]
[1753478874474,2.68583735,3723.3,3722.8,0.7584]
[1753478874675,2.68588292,3723.2,3722.8,0.7584]
[1753478875269,2.68588292,3723.2,3722.8,1.2167]
[1753478875472,0.03357417,3723.1,3722.5,0.7694]
[1753478875672,0.03357417,3723.1,3722.6,3.1344]
[1753478875673,0.1344,3723.1,3722.6,3.1344]
[1753478875875,0.1344,3723.1,3722.6,0.5927]
[1753478876063,2.68565534,3723.5,3722.8,2.68610753]
[1753478876376,2.625,3723.7,3723.3,0.8292]
[1753478876669,2.68562564,3723.6,3723.1,0.4583]
[1753478876843,2.68562564,3723.6,3723.3,0.1344]
[1753478877046,2.625,3723.7,3723.3,0.1344]
[1753478877239,0.27929679,3723.6,3723.3,0.1344]
[1753478877446,2.82016244,3723.4,3722.9,0.1344]
[1753478877644,2.82016244,3723.4,3722.9,1.0421]
[1753478877852,2.82016244,3723.4,3723.0,0.4583]
[1753478878443,2.68579058,3723.3,3722.9,0.5838]
[1753478878936,0.1344,3723.4,3722.9,1.0421]
[1753478879277,0.1344,3723.4,3722.9,3.72817008]
[1753478879653,0.1344,3723.4,3722.9,3.72815653]
[1753478880472,0.1344,3723.4,3722.9,1.0421]
[1753478880645,0.1344,3723.4,3722.9,3.72817549]
[1753478881175,0.1344,3723.4,3722.9,1.0421]
[1753478881477,0.1344,3723.4,3723.0,3.59365137]
[1753478881770,0.1344,3723.4,3723.1,0.4583]
[1753478882174,2.623,3723.7,3723.2,0.9077]
[1753478882352,2.7574,3723.7,3723.3,0.9077]
[1753478882552,2.623,3723.7,3723.3,1.6616]
[1753478882753,2.623,3723.7,3723.4,3.727767]
[1753478883057,2.7574,3724.3,3723.8,2.68537001]
[1753478883275,6.06591056,3724.3,3723.9,0.4583]
[1753478883576,3.38081398,3724.3,3723.9,0.4583]
[1753478884282,0.4742,3724.2,3722.4,1.2122]
[1753478884576,2.6860059,3723.0,3722.7,0.1344]
[1753478885141,2.68607805,3722.9,3722.3,0.4583]
[1753478885479,2.68607805,3722.9,3722.5,0.1344]
[1753478885675,2.68608042,3722.9,3722.5,0.1344]
[1753478886244,0.47787687,3722.8,3722.0,0.7539]
[1753478886474,0.1344,3722.6,3722.3,3.0]
[1753478886654,2.68596272,3723.1,3722.0,0.7539]
[1753478886655,2.622,3723.0,3722.4,0.9077]
[1753478886843,2.7564,3723.0,3722.5,0.1344]
[1753478887044,0.7918,3723.3,3722.5,0.4583]
[1753478887351,5.30788181,3723.2,3722.8,0.1344]
[1753478888043,2.68605843,3723.0,3722.4,3.0]
[1753478888255,2.68605843,3723.0,3722.5,0.1344]
[1753478888256,0.1344,3723.0,3722.5,0.1344]
[1753478888682,0.1344,3723.0,3722.5,3.1344]
[1753478889476,0.1344,3723.0,3722.6,0.9077]
[1753478889681,2.82041123,3723.0,3722.6,0.9077]
[1753478890046,0.1344,3723.0,3722.6,0.9077]
[1753478890644,0.1344,3723.0,3722.7,0.4583]
[1753478891076,0.84700702,3723.0,3722.5,0.1344]
[1753478891279,0.84700702,3723.0,3722.6,0.9077]
[1753478891482,2.621,3723.4,3722.8,0.7529]
[1753478891773,2.68557738,3723.6,3723.1,0.1344]
[1753478891974,2.621,3723.6,3723.2,0.4583]
[1753478893097,2.621,3723.6,3723.1,3.26972035]
[1753478893247,2.621,3723.6,3723.2,2.68586118]
[1753478893454,2.621,3723.6,3723.2,0.4583]
[1753478893856,2.62,3723.6,3723.2,0.4583]
[1753478894271,5.30558363,3723.6,3723.1,0.5838]
[1753478894481,0.1344,3723.7,3723.1,3.26973288]
[1753478894690,2.7544,3723.7,3723.2,0.4583]
[1753478894893,0.1344,3723.7,3723.5,2.68559418]
[1753478895076,0.1344,3724.1,3723.6,1.0421]
[1753478895254,2.62,3724.1,3723.9,0.1344]
[1753478895455,2.62,3724.1,3723.8,0.1344]
[1753478895658,2.6850921,3724.3,3723.8,0.1344]
[1753478895851,2.62,3724.2,3723.8,0.1344]
[1753478896975,2.68535674,3723.9,3723.8,0.1344]
[1753478897166,2.68582738,3723.3,3722.6,4.07998998]
[1753478897361,0.1344,3723.2,3722.6,1.3937]
[1753478897564,0.1344,3723.2,3722.6,0.1344]
[1753478897761,1.2424,3723.1,3722.2,0.1344]
[1753478897963,2.68634278,3722.6,3722.2,0.1344]
[1753478898192,0.16797777,3722.7,3722.2,0.1344]
[1753478898397,2.68629452,3722.6,3722.2,0.1344]
[1753478898601,0.1344,3722.7,3722.6,2.68629452]
[1753478898900,2.7534,3723.3,3722.7,2.68622195]
[1753478899272,5.43919477,3723.3,3722.8,0.1344]
[1753478899472,2.7534,3723.3,3722.8,0.5927]
[1753478899797,5.43920396,3723.3,3722.8,0.5927]
[1753478900004,2.7534,3723.3,3722.8,3.27880784]
[1753478900203,2.7534,3723.3,3722.9,2.68607337]
[1753478900573,2.619,3723.4,3723.1,2.68588561]
[1753478900903,2.619,3723.4,3723.1,0.1344]
[1753478901065,3.58818213,3723.6,3723.1,0.1344]
[1753478901267,2.619,3723.5,3723.1,0.1344]
[1753478902100,2.619,3723.5,3722.3,0.801]
[1753478902101,2.68605272,3723.0,3722.4,0.1344]
[1753478902281,2.82048721,3722.9,3722.4,3.1344]
[1753478902683,0.1344,3722.9,3722.4,3.1344]
[1753478903000,2.68619644,3722.8,3722.4,0.1344]
[1753478903206,3.58869816,3722.9,3722.4,0.1344]
[1753478903406,0.9026,3722.9,3722.4,0.1344]
[1753478903586,0.9026,3722.9,3722.2,3.15885682]
[1753478903786,2.71977231,3722.8,3722.2,0.6067]
[1753478904203,2.71977231,3722.8,3722.2,3.29328277]
[1753478904437,2.68631324,3722.6,3722.2,0.1344]
[1753478904585,2.68624126,3722.7,3722.1,3.4971]
[1753478904790,0.1344,3722.5,3722.1,3.4971]
[1753478905619,0.1344,3722.5,3722.1,0.4971]
[1753478905820,0.1344,3722.5,3722.1,3.4971]
[1753478906022,0.1344,3722.5,3722.2,0.4971]
[1753478906195,2.82077007,3722.5,3722.2,0.4971]
[1753478906516,0.1344,3722.5,3722.2,0.4971]
[1753478906719,2.65058048,3722.4,3721.7,0.796]
[1753478906920,2.6866399,3722.2,3721.7,0.9304]
[1753478907120,2.68677616,3722.0,3721.6,0.4971]
[1753478907421,2.68677616,3722.0,3721.6,0.1344]
[1753478908420,2.72040801,3721.9,3721.1,0.4971]
[1753478908628,0.1344,3721.9,3721.4,3.1344]
[1753478908826,0.1344,3721.9,3721.5,0.4971]
[1753478908991,0.1344,3721.9,3721.4,0.1344]
[1753478909187,0.46031841,3721.9,3721.4,0.1344]
[1753478909386,0.1344,3721.6,3721.1,3.6315]
[1753478909612,2.82144292,3721.6,3721.1,0.6315]
[1753478909793,2.68717891,3721.4,3721.1,1.1038]
[1753478910124,2.68711151,3721.5,3721.2,0.4971]
[1753478910290,2.68711151,3721.5,3721.1,0.1344]
[1753478910630,2.68711151,3721.5,3721.1,0.6315]
[1753478910822,2.68711151,3721.5,3721.1,0.1344]
[1753478910823,3.2380138,3721.4,3721.1,0.1344]
[1753478911131,2.687406,3721.1,3720.6,0.6315]
[1753478911626,0.1344,3721.2,3720.7,3.9694]
[1753478911830,0.1344,3721.2,3720.7,3.4723]
[1753478912041,2.616,3721.3,3720.9,3.0]
[1753478912225,0.32591841,3721.9,3720.9,0.1344]
[1753478912226,2.68716147,3721.4,3720.9,0.1344]
[1753478912535,5.30316147,3721.4,3721.0,0.4971]
[1753478912936,0.1344,3721.5,3721.0,0.4971]
[1753478913100,2.617,3721.4,3721.1,0.9694]
[1753478913300,2.617,3721.4,3721.2,0.4971]
[1753478913913,2.617,3721.4,3721.1,0.4723]
[1753478914138,2.617,3721.4,3720.9,3.6315]
[1753478914309,2.617,3721.4,3720.9,3.1344]
[1753478914648,0.7854,3722.8,3721.8,0.8084]
[1753478914943,2.68640719,3722.5,3721.9,0.4971]
[1753478915152,3.4014,3722.8,3722.0,0.49916727]
[1753478915451,0.7854,3723.2,3722.1,3.13996655]
[1753478915680,0.7854,3723.2,3722.4,2.68643885]
[1753478915808,1.2596,3723.7,3722.6,2.68629452]
[1753478916015,1.2596,3723.7,3723.0,2.68598416]
[1753478916016,2.616,3723.6,3723.0,2.68598416]
[1753478916342,0.39806,3723.5,3723.0,2.68598416]
[1753478916546,0.39806,3723.5,3722.9,2.68605808]
[1753478916719,0.39806,3723.5,3722.7,3.6556221]
[1753478916720,0.39806,3723.5,3723.0,2.68598713]
[1753478916925,2.616,3723.6,3723.0,2.68598713]
[1753478917118,2.616,3723.6,3722.9,2.68606673]
[1753478918214,2.616,3723.6,3722.7,0.9694]
[1753478918532,5.3015986,3723.6,3722.9,2.68607345]
[1753478918731,2.616,3723.6,3722.9,2.68607345]
[1753478918932,0.66661147,3723.5,3722.9,2.68607345]
[1753478920452,0.7519,3724.7,3723.2,3.0]
[1753478920756,5.29986681,3724.6,3723.7,3.0]
[1753478920913,0.40144214,3724.5,3723.6,3.0]
[1753478921108,0.7519,3724.4,3723.6,2.68551087]
[1753478921452,0.65259668,3724.5,3723.0,2.68593694]
[1753478921453,0.7519,3723.9,3723.0,2.68593694]
[1753478921613,5.30048057,3723.8,3723.0,5.68600401]
[1753478921813,5.3005086,3723.7,3723.0,0.4971]
[1753478922023,3.26666086,3723.7,3723.0,3.4971]
[1753478922352,3.26666086,3723.7,3722.5,6.48551435]
[1753478922353,0.65266086,3723.7,3722.5,6.48551435]
[1753478922540,2.614,3723.8,3723.3,2.68574833]
[1753478922915,2.614,3723.8,3723.4,0.4971]
[1753478923128,3.43725738,3723.9,3723.4,0.4971]
[1753478923129,0.7519,3723.9,3723.4,0.4971]
[1753478923342,2.614,3723.8,3723.4,0.4971]
[1753478923553,0.7625,3724.3,3723.3,0.8286]
[1753478923721,0.7625,3724.3,3723.5,0.9694]